fUST/lending_fUST_20240105
["ID","MTS","AMOUNT","RATE_DAILY","PERIOD"]
[310278676,1704459047577,-500.0,0.00036015,7]
[310278677,1704459047587,-638.8500626,0.00036015,7]
[310278678,1704459047597,-511.47532411,0.00036015,7]
[310278679,1704459047607,-500.0,0.00036015,7]
[310278680,1704459047616,-500.0,0.00036015,7]
[310278681,1704459047625,-500.0,0.00036015,7]
[310278682,1704459047635,-500.0,0.00036081,2]
[310278683,1704459047645,-2034.45922609,0.00036099,2]
[310278684,1704459047654,-471.54729606,0.00036099,2]
[310278685,1704459047663,-5000.0,0.00036099,7]
[310278686,1704459047673,-5000.0,0.00036099,7]
[310278687,1704459047682,-5000.0,0.00036099,7]
[310278688,1704459047692,-3519.51104655,0.00036099,2]
[310278689,1704459047700,-500.0,0.00036115,7]
[310278690,1704459047710,-500.0,0.00036115,7]
[310278691,1704459047719,-500.0,0.00036115,7]
[310278692,1704459047728,-151.0,0.00036116,2]
[310278693,1704459047738,-151.0,0.00036116,2]
[310278694,1704459047747,-151.0,0.00036116,2]
[310278695,1704459047757,-151.0,0.00036116,2]
[310278696,1704459047767,-621.89,0.00036116,7]
[310278697,1704459047776,-593.89,0.00036116,7]
[310278698,1704459047786,-500.0,0.00036116,7]
[310278699,1704459047795,-500.0,0.00036116,7]
[310278700,1704459047805,-20000.0,0.00036116,10]
[310278701,1704459047814,-500.0,0.00036116,7]
[310278702,1704459047823,-500.0,0.00036116,7]
[310278703,1704459047832,-500.0,0.00036116,7]
[310278704,1704459047842,-500.0,0.00036116,7]
[310278705,1704459047851,-504.31168835,0.00036116,7]
[310278706,1704459047861,-839.26,0.00036116,7]
[310278707,1704459047869,-500.0,0.00036116,7]
[310278708,1704459047879,-1430.28,0.00036116,7]
[310278709,1704459047888,-500.0,0.00036116,7]
[310278710,1704459047900,-500.0,0.00036116,7]
[310278711,1704459047909,-500.0,0.00036116,7]
[310278712,1704459047919,-1608.69438538,0.00036116,7]
[310278713,1704459047928,-502.52576506,0.00036116,7]
[310278714,1704459047937,-500.0,0.00036116,7]
[310278715,1704459047947,-500.0,0.00036116,7]
[310278716,1704459047956,-509.2331222,0.00036116,7]
[310278717,1704459047965,-500.0,0.00036116,7]
[310278718,1704459047975,-500.0,0.00036116,7]
[310278719,1704459047984,-500.0,0.00036116,7]
[310278720,1704459047994,-199.11669018,0.00036117,3]
[310278721,1704459048003,-151.0,0.00036117,2]
[310278722,1704459048014,-151.0,0.00036117,2]
[310278723,1704459048023,-38133.01216665,0.00036117,5]
[310278724,1704459048033,-500.0,0.00036188,7]
[310278725,1704459048042,-18831.63477527,0.00036189,4]
[310278726,1704459048051,-1482.54823996,0.00036189,4]
[310278727,1704459048060,-500.0,0.0003619,15]
[310278728,1704459048069,-500.0,0.00036197,7]
[310278729,1704459048078,-200.77731642,0.00036197,7]
[310278730,1704459048087,-500.0,0.00036197,7]
[310278731,1704459048096,-502.89783528,0.00036197,7]
[310278732,1704459048105,-502.6004063,0.00036197,7]
[310278733,1704459048115,-500.0,0.00036197,7]
[310278734,1704459048124,-500.0,0.00036197,7]
[310278735,1704459048134,-500.0,0.00036197,7]
[310278736,1704459048143,-500.0,0.00036197,7]
[310278737,1704459048152,-500.0,0.00036197,7]
[310278738,1704459048161,-500.0,0.00036197,7]
[310278739,1704459048171,-500.0,0.00036197,7]
[310278740,1704459048180,-500.0,0.00036197,7]
[310278741,1704459048189,-500.0,0.00036197,7]
[310278742,1704459048199,-500.0,0.00036197,7]
[310278743,1704459048208,-17347.69,0.00036207,7]
[310278744,1704459048217,-500.0,0.00036207,7]
[310278745,1704459048226,-500.0,0.00036207,7]
[310278746,1704459048331,-511.13138698,0.00036216,7]
[310278747,1704459048340,-151.0,0.00036217,2]
[310278748,1704459048350,-151.0,0.00036217,2]
[310278749,1704459048359,-500.0,0.00036217,7]
[310278750,1704459048369,-500.0,0.00036217,7]
[310278751,1704459048379,-271.41403478,0.00036217,7]
[310278752,1704459048388,-290.06211656,0.00036217,7]
[310278753,1704459048398,-241.80874598,0.00036217,7]
[310278754,1704459048407,-500.0,0.00036217,7]
[310278755,1704459048417,-500.0,0.00036217,7]
[310278756,1704459048427,-421.00151705,0.00036217,7]
[310278757,1704459048436,-583.23643558,0.00036217,7]
[310278758,1704459048446,-500.0,0.00036217,7]
[310278759,1704459048455,-500.0,0.00036218,7]
[310278760,1704459048464,-500.0,0.00036218,7]
[310278761,1704459048474,-488.76637583,0.00036218,2]
[310278762,1704459048483,-500.0,0.00036218,2]
[310278763,1704459048493,-500.0,0.00036218,7]
[310278764,1704459048501,-1339.82,0.00036218,7]
[310278765,1704459048511,-500.0,0.00036218,7]
[310278766,1704459048521,-417.26626376,0.00036218,7]
[310278767,1704459048530,-500.0,0.00036218,7]
[310278768,1704459048539,-1005.7000623,0.00036218,5]
[310278769,1704459048549,-500.0,0.00036218,7]
[310278770,1704459048558,-497.61929529,0.00036218,7]
[310278771,1704459048567,-500.0,0.00036218,7]
[310278772,1704459048577,-193.72076064,0.00036218,7]
[310278773,1704459048586,-500.0,0.00036218,7]
[310278774,1704459048595,-594.91,0.00036218,7]
[310278775,1704459048605,-1048.45,0.00036218,7]
[310278776,1704459048614,-500.0,0.00036218,7]
[310278777,1704459048623,-3018.36,0.00036218,7]
[310278778,1704459048632,-2383.79,0.00036218,7]
[310278779,1704459048642,-500.0,0.00036218,7]
[310278780,1704459048651,-534.95882597,0.00036218,7]
[310278781,1704459048660,-582.89,0.00036218,7]
[310278782,1704459048670,-500.0,0.00036218,7]
[310278783,1704459048679,-500.0,0.00036218,7]
[310278784,1704459048688,-500.0,0.00036218,7]
[310278785,1704459048697,-583.89,0.00036218,7]
[310278786,1704459048705,-500.0,0.00036218,7]
[310278787,1704459048714,-3608.46,0.00036218,7]
[310278788,1704459048723,-500.0,0.00036218,7]
[310278789,1704459048734,-500.90880569,0.00036218,7]
[310278790,1704459048744,-500.0,0.00036218,7]
[310278791,1704459048754,-500.0,0.00036218,7]
[310278792,1704459048763,-500.0,0.00036218,7]
[310278793,1704459048772,-500.0,0.00036218,7]
[310278794,1704459048781,-500.0,0.00036218,7]
[310278795,1704459048793,-500.0,0.00036218,7]
[310278796,1704459048802,-500.0,0.00036218,7]
[310278797,1704459048812,-500.0,0.00036218,7]
[310278798,1704459048821,-500.0,0.00036218,7]
[310278799,1704459048830,-500.0,0.00036218,7]
[310278800,1704459048839,-1222.67,0.00036218,7]
[310278801,1704459048849,-500.0,0.00036218,7]
[310278802,1704459048858,-500.0,0.00036218,2]
[310278803,1704459048868,-151.0,0.00036218,2]
[310278804,1704459048877,-151.0,0.00036218,2]
[310278805,1704459048886,-151.0,0.00036218,2]
[310278806,1704459048896,-151.0,0.00036218,2]
[310278807,1704459048906,-151.0,0.00036218,2]
[310278808,1704459048915,-151.0,0.00036218,2]
[310278809,1704459048924,-151.0,0.00036218,2]
[310278810,1704459048933,-151.0,0.00036218,2]
[310278811,1704459048942,-151.0,0.00036218,2]
[310278812,1704459048952,-151.0,0.00036218,2]
[310278813,1704459048961,-155.94099788,0.00036218,2]
[310278814,1704459048970,-500.0,0.00036227,7]
[310278815,1704459048979,-500.0,0.00036227,7]
[310278816,1704459048989,-500.0,0.00036228,7]
[310278817,1704459048998,-508.45699376,0.00036228,7]
[310278818,1704459049007,-500.0,0.00036228,7]
[310278819,1704459049017,-500.0,0.00036228,7]
[310278820,1704459049027,-500.0,0.00036228,7]
[310278821,1704459049037,-500.0,0.00036228,7]
[310278822,1704459049046,-500.0,0.00036228,7]
[310278823,1704459049056,-500.0,0.00036228,7]
[310278824,1704459049065,-500.0,0.00036228,7]
[310278825,1704459049074,-500.0,0.00036228,7]
[310278826,1704459049082,-500.0,0.00036228,7]
[310278827,1704459049091,-500.0,0.00036228,7]
[310278828,1704459049100,-615.48411146,0.00036228,7]
[310278829,1704459049110,-500.0,0.00036228,7]
[310278830,1704459049119,-500.0,0.00036228,7]
[310278831,1704459049128,-512.41003508,0.00036228,7]
[310278832,1704459049138,-500.0,0.00036228,7]
[310278833,1704459049147,-500.0,0.00036228,7]
[310278834,1704459049156,-593.41513569,0.00036228,7]
[310278835,1704459049165,-502.49691639,0.00036228,7]
[310278836,1704459049175,-500.0,0.00036228,7]
[310278837,1704459049185,-500.0,0.00036228,7]
[310278838,1704459049195,-500.0,0.00036228,7]
[310278839,1704459049205,-500.0,0.00036228,7]
[310278840,1704459049214,-500.0,0.00036228,7]
[310278841,1704459049223,-500.0,0.00036228,7]
[310278842,1704459049232,-500.0,0.00036228,7]
[310278843,1704459049241,-500.0,0.00036228,7]
[310278844,1704459049250,-833.86,0.00036228,7]
[310278845,1704459049260,-500.0,0.00036228,7]
[310278846,1704459049269,-500.0,0.00036228,7]
[310278847,1704459049278,-500.0,0.00036228,7]
[310278848,1704459049287,-500.0,0.00036228,7]
[310278849,1704459049296,-500.0,0.00036228,30]
[310278850,1704459049307,-500.0,0.00036228,7]
[310278851,1704459049315,-500.0,0.00036228,7]
[310278852,1704459049324,-557.58115586,0.00036228,7]
[310278853,1704459049335,-563.39752874,0.00036228,7]
[310278854,1704459049344,-519.45420278,0.00036228,7]
[310278855,1704459049354,-500.0,0.00036228,7]
[310278856,1704459049363,-500.0,0.00036228,7]
[310278857,1704459049373,-500.0,0.00036228,7]
[310278858,1704459049382,-500.0,0.00036228,7]
[310278859,1704459049391,-500.0,0.00036228,7]
[310278860,1704459049401,-500.0,0.00036228,7]
[310278861,1704459049410,-501.38473885,0.00036228,7]
[310278862,1704459049419,-500.0,0.00036228,7]
[310278863,1704459049429,-500.0,0.00036228,7]
[310278864,1704459049438,-500.0,0.00036228,7]
[310278865,1704459049447,-500.0,0.00036228,7]
[310278866,1704459049457,-500.0,0.00036228,7]
[310278867,1704459049466,-500.0,0.00036228,7]
[310278868,1704459049477,-500.0,0.00036228,7]
[310278869,1704459049486,-500.0,0.00036228,7]
[310278870,1704459049495,-500.0,0.00036228,7]
[310278871,1704459049504,-500.0,0.00036228,7]
[310278872,1704459049515,-500.0,0.00036228,7]
[310278873,1704459049524,-221.45876567,0.00036228,7]
[310278874,1704459049534,-500.0,0.00036228,7]
[310278875,1704459049545,-500.0,0.00036228,7]
[310278876,1704459049555,-505.21520683,0.00036228,7]
[310278877,1704459049564,-500.0,0.00036228,7]
[310278878,1704459049573,-500.0,0.00036228,7]
[310278879,1704459049582,-502.62859317,0.00036228,7]
[310278880,1704459049592,-600.60849308,0.00036228,7]
[310278881,1704459049601,-500.0,0.00036228,7]
[310278882,1704459049610,-525.52,0.00036228,7]
[310278883,1704459049619,-500.78713183,0.00036228,7]
[310278884,1704459049628,-500.0,0.00036228,7]
[310278885,1704459049638,-575.01498537,0.00036228,7]
[310278886,1704459049647,-500.0,0.00036228,7]
[310278887,1704459049656,-413.79100442,0.00036228,7]
[310278888,1704459049665,-221.22074478,0.00036228,7]
[310278889,1704459049674,-500.0,0.00036228,7]
[310278890,1704459049684,-200.0,0.00036228,7]
[310278891,1704459049694,-500.0,0.00036228,7]
[310278892,1704459049703,-504.45461867,0.00036228,7]
[310278893,1704459049712,-500.0,0.00036228,7]
[310278894,1704459049721,-500.0,0.00036228,7]
[310278895,1704459049731,-500.39026191,0.00036228,7]
[310278896,1704459049741,-500.0,0.00036229,7]
[310278897,1704459049750,-500.0,0.00036229,7]
[310278898,1704459049760,-500.0,0.00036229,7]
[310278899,1704459049769,-405.99498985,0.00036229,7]
[310278900,1704459049778,-300.0,0.0003623,30]
[310278901,1704459049788,-5000.0,0.0003623,7]
[310278902,1704459049798,-5000.0,0.0003623,7]
[310278903,1704459049807,-500.0,0.00036238,7]
[310278904,1704459049817,-500.0,0.00036238,7]
[310278905,1704459049826,-502.7224527,0.00036238,7]
[310278906,1704459049836,-503.97359211,0.00036238,7]
[310278907,1704459049846,-500.81378762,0.00036238,7]
[310278908,1704459049856,-500.0,0.00036238,7]
[310278909,1704459049865,-500.0,0.00036238,7]
[310278910,1704459049874,-500.78450274,0.00036238,7]
[310278911,1704459049883,-500.0,0.00036238,7]
[310278912,1704459049892,-1581.41,0.00036238,7]
[310278913,1704459049901,-500.0,0.00036238,7]
[310278914,1704459049911,-500.0,0.00036238,7]
[310278915,1704459049920,-505.92437706,0.00036238,7]
[310278916,1704459049929,-505.45277233,0.00036238,7]
[310278917,1704459049939,-500.0,0.00036238,7]
[310278918,1704459049948,-501.30011221,0.00036238,7]
[310278919,1704459049957,-167.17754827,0.00036238,7]
[310278920,1704459049966,-500.0,0.00036238,7]
[310278921,1704459049976,-500.0,0.00036238,7]
[310278922,1704459049985,-55436.15,0.00036238,3]
[310278923,1704459049995,-532.45,0.00036238,7]
[310278924,1704459050003,-445.67373896,0.00036238,7]
[310278925,1704459050013,-530.87761308,0.00036238,7]
[310278926,1704459050022,-8443.55,0.00036238,7]
[310278927,1704459050032,-500.0,0.00036238,7]
[310278928,1704459050042,-500.0,0.00036238,7]
[310278929,1704459050052,-500.0,0.00036238,7]
[310278930,1704459050061,-500.0,0.00036238,7]
[310278931,1704459050070,-500.0,0.00036238,7]
[310278932,1704459050079,-500.0,0.00036238,7]
[310278933,1704459050089,-500.0,0.00036238,7]
[310278934,1704459050098,-500.0,0.00036238,7]
[310278935,1704459050107,-500.0,0.00036238,7]
[310278936,1704459050117,-547.98108903,0.00036238,7]
[310278937,1704459050126,-515.58624511,0.00036238,7]
[310278938,1704459050136,-12375.52,0.00036238,7]
[310278939,1704459050145,-500.0,0.00036238,7]
[310278940,1704459050154,-500.0,0.00036238,7]
[310278941,1704459050163,-500.0,0.00036238,7]
[310278942,1704459050172,-500.0,0.00036238,7]
[310278943,1704459050181,-500.0,0.00036238,7]
[310278944,1704459050190,-500.0,0.00036238,7]
[310278945,1704459050199,-1494.5,0.00036238,7]
[310278946,1704459050209,-500.0,0.00036238,7]
[310278947,1704459050218,-734.91,0.00036238,7]
[310278948,1704459050227,-500.0,0.00036238,7]
[310278949,1704459050237,-500.0,0.00036238,7]
[310278950,1704459050246,-500.0,0.00036238,7]
[310278951,1704459050255,-4330.13,0.00036238,7]
[310278952,1704459050266,-1296.28,0.00036258,7]
[310278953,1704459050275,-6988.09,0.00036258,7]
[310278954,1704459050285,-2068.53,0.00036258,7]
[310278955,1704459050294,-501.53174105,0.00036258,7]
[310278956,1704459050304,-500.0,0.00036258,7]
[310278957,1704459050313,-1582.99,0.00036258,7]
[310278958,1704459050322,-500.0,0.00036258,7]
[310278959,1704459050331,-500.0,0.00036258,7]
[310278960,1704459050341,-500.0,0.00036258,7]
[310278961,1704459050351,-500.0,0.00036258,7]
[310278962,1704459050360,-814.63,0.00036258,7]
[310278963,1704459050370,-500.0,0.00036258,7]
[310278964,1704459050379,-2712.3,0.00036258,7]
[310278965,1704459050388,-500.0,0.00036258,7]
[310278966,1704459050398,-500.0,0.00036258,7]
[310278967,1704459050408,-500.0,0.00036258,7]
[310278968,1704459050417,-500.0,0.00036258,7]
[310278969,1704459050427,-500.0,0.00036258,7]
[310278970,1704459050437,-2830.56,0.00036258,7]
[310278971,1704459050447,-500.0,0.00036269,7]
[310278972,1704459050456,-1011.98,0.00036269,7]
[310278973,1704459050465,-619.36,0.00036269,7]
[310278974,1704459050475,-500.0,0.00036269,7]
[310278975,1704459050484,-500.0,0.00036269,7]
[310278976,1704459050494,-500.0,0.00036269,7]
[310278977,1704459050503,-500.0,0.00036269,7]
[310278978,1704459050513,-500.0,0.00036269,7]
[310278979,1704459050522,-504.27508967,0.00036269,7]
[310278980,1704459050532,-500.0,0.00036269,7]
[310278981,1704459050541,-500.0,0.00036269,7]
[310278982,1704459050551,-500.0,0.00036269,7]
[310278983,1704459050561,-500.0,0.00036269,7]
[310278984,1704459050570,-500.0,0.00036269,7]
[310278985,1704459050579,-500.0,0.00036269,7]
[310278986,1704459050678,-151.70420499,0.00036269,7]
[310278987,1704459050688,-502.37508239,0.00036269,7]
[310278988,1704459050698,-500.0,0.00036269,7]
[310278989,1704459050707,-502.97089969,0.00036269,7]
[310278990,1704459050714,-500.0,0.00036269,7]
[310278991,1704459050722,-500.0,0.00036269,7]
[310278992,1704459050731,-500.0,0.00036269,7]
[310278993,1704459050741,-500.0,0.00036269,7]
[310278994,1704459050750,-500.0,0.00036269,7]
[310278995,1704459050760,-500.0,0.00036269,7]
[310278996,1704459050769,-500.0,0.00036269,7]
[310278997,1704459050778,-500.0,0.00036269,7]
[310278998,1704459050787,-500.0,0.00036269,7]
[310278999,1704459050797,-500.0,0.00036269,7]
[310279000,1704459050807,-559.65,0.00036269,7]
[310279001,1704459050816,-508.81539392,0.00036269,7]
[310279002,1704459050826,-500.0,0.00036269,7]
[310279003,1704459050835,-500.0,0.00036269,7]
[310279004,1704459050845,-506.82429911,0.00036269,7]
[310279005,1704459050854,-773.11,0.00036269,7]
[310279006,1704459050863,-500.0,0.00036269,7]
[310279007,1704459050872,-500.57928589,0.00036269,7]
[310279008,1704459050881,-500.0,0.00036269,7]
[310279009,1704459050890,-500.0,0.00036269,7]
[310279010,1704459050900,-502.12054032,0.00036269,7]
[310279011,1704459050909,-604.56,0.00036269,7]
[310279012,1704459050919,-500.0,0.00036269,7]
[310279013,1704459050929,-325.50344959,0.00036269,7]
[310279014,1704459050939,-500.0,0.00036269,7]
[310279015,1704459050948,-500.0,0.00036269,7]
[310279016,1704459050957,-500.0,0.00036269,7]
[310279017,1704459050967,-500.0,0.00036269,7]
[310279018,1704459050976,-528.54804601,0.00036269,7]
[310279019,1704459050985,-500.0,0.00036269,7]
[310279020,1704459050995,-500.0,0.00036269,7]
[310279021,1704459051004,-245.3672462,0.00036269,7]
[310279022,1704459051014,-500.0,0.00036269,7]
[310279023,1704459051024,-500.0,0.00036269,7]
[310279024,1704459051033,-500.0,0.00036269,7]
[310279025,1704459051043,-500.13577256,0.00036269,7]
[310279026,1704459051052,-232.17960389,0.00036269,7]
[310279027,1704459051062,-500.0,0.00036269,7]
[310279028,1704459051071,-500.0,0.00036269,7]
[310279029,1704459051081,-1642.96,0.00036269,7]
[310279030,1704459051090,-509.82,0.00036269,7]
[310279031,1704459051100,-500.0,0.00036269,7]
[310279032,1704459051109,-500.0,0.00036269,7]
[310279033,1704459051119,-500.0,0.00036269,7]
[310279034,1704459051129,-500.0,0.00036269,7]
[310279035,1704459051138,-500.0,0.00036269,7]
[310279036,1704459051148,-982.7,0.00036269,7]
[310279037,1704459051157,-338.71644115,0.00036269,7]
[310279038,1704459051167,-500.0,0.00036269,7]
[310279039,1704459051176,-500.0,0.00036269,7]
[310279040,1704459051185,-502.65211656,0.00036269,7]
[310279041,1704459051194,-500.0,0.00036269,7]
[310279042,1704459051204,-500.0,0.00036269,7]
[310279043,1704459051213,-500.0,0.00036269,7]
[310279044,1704459051223,-297.9697142,0.00036269,7]
[310279045,1704459051232,-500.79600875,0.00036269,7]
[310279046,1704459051243,-497.9790682,0.00036269,7]
[310279047,1704459051252,-500.31706994,0.00036269,7]
[310279048,1704459051261,-500.0,0.00036269,7]
[310279049,1704459051271,-1418.34,0.00036269,7]
[310279050,1704459051281,-1000.0,0.00036269,2]
[310279051,1704459051291,-500.0,0.00036269,7]
[310279052,1704459051300,-619.88725938,0.00036269,7]
[310279053,1704459051310,-452.54444179,0.00036269,7]
[310279054,1704459051320,-500.0,0.00036269,7]
[310279055,1704459051330,-500.0,0.00036289,7]
[310279056,1704459051340,-500.0,0.00036289,7]
[310279057,1704459051350,-500.0,0.00036289,7]
[310279058,1704459051360,-500.0,0.00036289,7]
[310279059,1704459051370,-184.78237686,0.00036289,7]
[310279060,1704459051380,-500.0,0.00036289,7]
[310279061,1704459051390,-500.0,0.00036289,7]
[310279062,1704459051399,-500.8399987,0.00036289,7]
[310279063,1704459051409,-500.0,0.00036289,7]
[310279064,1704459051419,-502.18859999,0.00036289,7]
[310279065,1704459051430,-500.0,0.00036289,7]
[310279066,1704459051440,-500.0,0.00036289,7]
[310279067,1704459051451,-500.0,0.00036289,7]
[310279068,1704459051460,-500.0,0.00036289,7]
[310279069,1704459051471,-500.0,0.00036289,7]
[310279070,1704459051481,-500.0,0.00036289,7]
[310279071,1704459051491,-500.0,0.00036289,7]
[310279072,1704459051502,-500.0,0.00036289,7]
[310279073,1704459051513,-500.0,0.00036289,7]
[310279074,1704459051523,-150.0,0.00036289,7]
[310279075,1704459051533,-492.81399498,0.00036289,2]
[310279076,1704459051543,-500.0,0.00036289,7]
[310279077,1704459051554,-530.0919327,0.00036289,7]
[310279078,1704459051563,-518.07790037,0.00036289,7]
[310279079,1704459051572,-500.0,0.00036289,7]
[310279080,1704459051582,-500.0,0.00036289,7]
[310279081,1704459051593,-821.5,0.00036289,7]
[310279082,1704459051602,-500.0,0.00036289,7]
[310279083,1704459051613,-587.64671427,0.00036289,7]
[310279084,1704459051622,-175.5268815,0.00036289,7]
[310279085,1704459051631,-563.21371056,0.00036289,7]
[310279086,1704459051641,-500.0,0.00036289,7]
[310279087,1704459051650,-536.17894485,0.00036289,7]
[310279088,1704459051660,-500.0,0.00036289,7]
[310279089,1704459051668,-500.0,0.00036289,7]
[310279090,1704459051678,-500.0,0.00036289,7]
[310279091,1704459051688,-500.0,0.00036289,7]
[310279092,1704459051697,-500.0,0.00036289,7]
[310279093,1704459051706,-500.0,0.00036289,7]
[310279094,1704459051716,-500.0,0.00036289,7]
[310279095,1704459051725,-186.45534578,0.00036289,7]
[310279096,1704459051736,-691.5,0.00036289,7]
[310279097,1704459051746,-500.0,0.00036289,7]
[310279098,1704459051755,-567.15,0.00036289,7]
[310279099,1704459051764,-500.0,0.00036289,7]
[310279100,1704459051774,-500.0,0.00036289,7]
[310279101,1704459051783,-467.53540659,0.00036289,7]
[310279102,1704459051792,-500.0,0.00036289,2]
[310279103,1704459051802,-500.0,0.00036289,7]
[310279104,1704459051813,-500.0,0.00036289,7]
[310279105,1704459051822,-220.0,0.00036289,2]
[310279106,1704459051832,-500.0,0.00036289,7]
[310279107,1704459051842,-501.20168231,0.00036289,7]
[310279108,1704459051851,-851.13,0.00036289,7]
[310279109,1704459051860,-500.0,0.00036289,7]
[310279110,1704459051870,-500.0,0.00036289,7]
[310279111,1704459051879,-492.26208857,0.00036289,7]
[310279112,1704459051888,-511.4902281,0.00036289,7]
[310279113,1704459051897,-248.67431878,0.00036289,7]
[310279114,1704459051906,-550.06565822,0.00036289,7]
[310279115,1704459051916,-500.0,0.00036289,7]
[310279116,1704459051925,-500.0,0.00036289,7]
[310279117,1704459051935,-176.99740103,0.00036289,7]
[310279118,1704459051944,-506.44098575,0.00036289,7]
[310279119,1704459051953,-503.98992908,0.00036289,7]
[310279120,1704459051962,-500.0,0.00036289,7]
[310279121,1704459051971,-231.5917,0.00036292,2]
[310279122,1704459051980,-150.78889555,0.00036295,4]
[310279123,1704459051990,-500.0,0.00036355,2]
[310279124,1704459051999,-621.89,0.0003639,7]
[310279125,1704459052007,-593.89,0.0003639,7]
[310279126,1704459052017,-500.0,0.0003639,7]
[310279127,1704459052026,-500.0,0.0003639,7]
[310279128,1704459052036,-20000.0,0.0003639,10]
[310279129,1704459052045,-503.21552704,0.0003639,7]
[310279130,1704459052054,-556.45951594,0.0003639,7]
[310279131,1704459052063,-500.0,0.0003639,7]
[310279132,1704459052072,-839.26,0.0003639,7]
[310279133,1704459052081,-500.0,0.0003639,7]
[310279134,1704459052091,-1430.28,0.0003639,7]
[310279135,1704459052100,-500.0,0.0003639,7]
[310279136,1704459052109,-500.0,0.0003639,7]
[310279137,1704459052119,-500.0,0.0003639,7]
[310279138,1704459052129,-618.29463578,0.0003639,7]
[310279139,1704459052137,-500.0,0.0003639,7]
[310279140,1704459052147,-500.0,0.0003639,7]
[310279141,1704459052156,-1879.62673082,0.00036466,4]
[310279142,1704459052166,-500.0,0.00036471,7]
[310279143,1704459052175,-500.0,0.00036471,7]
[310279144,1704459052185,-500.0,0.00036471,7]
[310279145,1704459052194,-500.0,0.00036471,7]
[310279146,1704459052203,-500.0,0.00036471,7]
[310279147,1704459052212,-500.0,0.00036471,7]
[310279148,1704459052221,-346.3632309,0.00036471,7]
[310279149,1704459052230,-500.0,0.00036471,7]
[310279150,1704459052240,-500.0,0.00036471,7]
[310279151,1704459052249,-500.0,0.00036471,7]
[310279152,1704459052259,-500.0,0.00036471,7]
[310279153,1704459052269,-500.0,0.00036471,7]
[310279154,1704459052278,-1816.95560602,0.00036474,2]
[310279155,1704459052288,-2098.29027817,0.00036475,2]
[310279156,1704459052297,-17347.69,0.00036481,7]
[310279157,1704459052306,-504.36869818,0.00036481,7]
[310279158,1704459052315,-500.0,0.00036481,7]
[310279159,1704459052325,-883.12990218,0.00036486,7]
[310279160,1704459052334,-318.13328394,0.00036492,7]
[310279161,1704459052344,-500.0,0.00036492,2]
[310279162,1704459052354,-500.0,0.00036492,7]
[310279163,1704459052364,-1339.82,0.00036492,7]
[310279164,1704459052373,-500.0,0.00036492,7]
[310279165,1704459052382,-518.75442027,0.00036492,7]
[310279166,1704459052392,-533.83888348,0.00036492,7]
[310279167,1704459052401,-339.78060474,0.00036492,7]
[310279168,1704459052410,-507.75544563,0.00036492,7]
[310279169,1704459052419,-594.91,0.00036492,7]
[310279170,1704459052428,-1048.45,0.00036492,7]
[310279171,1704459052438,-500.0,0.00036492,7]
[310279172,1704459052447,-3018.36,0.00036492,7]
[310279173,1704459052457,-2383.79,0.00036492,7]
[310279174,1704459052466,-500.0,0.00036492,7]
[310279175,1704459052476,-582.89,0.00036492,7]